[Event "Titled Tuesday Blitz May 9 Late 2023"]
[White "Avalos Parra, Joao"]
[Black "Spitzl, Vinzent"]
[WhiteFideId "3402541"]
[BlackFideId "12901253"]
[WhiteElo "2173"]
[BlackElo "2225"]
[Result "0-1"]
[Round "06"]
[TimeControl "180+2"]
[Date "2023.05.09"]
[WhiteClock "0:00:32"]
[BlackClock "0:00:42"]

1. d4 {[%clk 0:02:56]}  d5 {[%clk 0:02:59]} 2. c4 {[%clk 0:02:54]}  e6 {[%clk 0:03:00]} 3. Nf3 {[%clk 0:02:53]}  Nf6 {[%clk 0:03:00]} 4. Nc3 {[%clk 0:02:54]}  Bb4 {[%clk 0:03:01]} 5. Qa4+ {[%clk 0:02:51]}  Nc6 {[%clk 0:03:01]} 6. a3 {[%clk 0:02:52]}  Bxc3+ {[%clk 0:03:00]} 7. bxc3 {[%clk 0:02:53]}  O-O {[%clk 0:03:00]} 8. e3 {[%clk 0:02:53]}  Re8 {[%clk 0:03:00]} 9. cxd5 {[%clk 0:02:45]}  exd5 {[%clk 0:02:55]} 10. Be2 {[%clk 0:02:42]}  Bf5 {[%clk 0:02:51]} 11. O-O {[%clk 0:02:40]}  Ne4 {[%clk 0:02:47]} 12. Bb2 {[%clk 0:02:37]}  Bd7 {[%clk 0:02:34]} 13. Qc2 {[%clk 0:02:36]}  Na5 {[%clk 0:02:34]} 14. c4 {[%clk 0:02:32]}  Nxc4 {[%clk 0:02:17]} 15. Bxc4 {[%clk 0:02:30]}  dxc4 {[%clk 0:02:18]} 16. Qxc4 {[%clk 0:02:30]}  Be6 {[%clk 0:02:18]} 17. Qc2 {[%clk 0:02:30]}  Bd5 {[%clk 0:02:18]} 18. Rac1 {[%clk 0:02:27]}  c6 {[%clk 0:02:16]} 19. Ne5 {[%clk 0:02:12]}  Qg5 {[%clk 0:02:08]} 20. f4 {[%clk 0:02:03]}  Qe7 {[%clk 0:01:55]} 21. Rce1 {[%clk 0:01:58]}  f6 {[%clk 0:01:54]} 22. Nd3 {[%clk 0:01:59]}  Rac8 {[%clk 0:01:46]} 23. Nc5 {[%clk 0:01:54]}  b6 {[%clk 0:01:39]} 24. Nxe4 {[%clk 0:01:53]}  Bxe4 {[%clk 0:01:39]} 25. Qb3+ {[%clk 0:01:53]}  Bd5 {[%clk 0:01:39]} 26. Qa4 {[%clk 0:01:46]}  f5 {[%clk 0:01:37]} 27. Qb4 {[%clk 0:01:33]}  Qe4 {[%clk 0:01:35]} 28. Qd2 {[%clk 0:01:33]}  Re6 {[%clk 0:01:33]} 29. Rf2 {[%clk 0:01:30]}  Rce8 {[%clk 0:01:30]} 30. Bc1 {[%clk 0:01:26]}  Rg6 {[%clk 0:01:28]} 31. Ree2 {[%clk 0:01:22]}  h5 {[%clk 0:01:28]} 32. Qc2 {[%clk 0:01:16]}  Qe6 {[%clk 0:01:25]} 33. h3 {[%clk 0:01:11]}  h4 {[%clk 0:01:17]} 34. Kh2 {[%clk 0:01:12]}  Rg3 {[%clk 0:01:16]} 35. a4 {[%clk 0:01:02]}  Qg6 {[%clk 0:01:14]} 36. a5 {[%clk 0:00:59]}  Rxh3+ {[%clk 0:01:10]} 37. Kg1 {[%clk 0:00:52]}  Qg3 {[%clk 0:00:59]} 38. Rd2 {[%clk 0:00:43]}  Rxe3 {[%clk 0:00:43]} 39. Qxf5 {[%clk 0:00:34]}  Re1+ {[%clk 0:00:42]} 40. Rf1 {[%clk 0:00:33]}  Rh1+ {[%clk 0:00:41]} 41. Kxh1 {[%clk 0:00:32]}  Rxf1# {[%clk 0:00:42]} 0-1


[Site "https://www.chess.com"]

[Event "Titled Tuesday Blitz May 9 Late 2023"]
[White "Kujawski, Adam"]
[Black "Schnaider, Ilan"]
[WhiteFideId "1100920"]
[BlackFideId "169013"]
[WhiteElo "2054"]
[BlackElo "2224"]
[Result "0-1"]
[Round "06"]
[TimeControl "180+2"]
[Date "2023.05.09"]
[WhiteClock "0:00:00"]
[BlackClock "0:00:02"]

1. e4 {[%clk 0:02:54]}  c6 {[%clk 0:02:57]} 2. d4 {[%clk 0:02:54]}  d5 {[%clk 0:02:57]} 3. f3 {[%clk 0:02:54]}  dxe4 {[%clk 0:02:56]} 4. fxe4 {[%clk 0:02:54]}  e5 {[%clk 0:02:56]} 5. Nf3 {[%clk 0:02:54]}  exd4 {[%clk 0:02:56]} 6. Bc4 {[%clk 0:02:53]}  Bc5 {[%clk 0:02:37]} 7. O-O {[%clk 0:02:50]}  Nf6 {[%clk 0:02:34]} 8. e5 {[%clk 0:02:44]}  Nd5 {[%clk 0:02:33]} 9. Ng5 {[%clk 0:02:39]}  O-O {[%clk 0:02:14]} 10. Qh5 {[%clk 0:00:46]}  h6 {[%clk 0:02:13]} 11. Ne4 {[%clk 0:00:46]}  Qe7 {[%clk 0:02:07]} 12. Bxd5 {[%clk 0:00:15]}  cxd5 {[%clk 0:02:05]} 13. Nxc5 {[%clk 0:00:15]}  Qxc5 {[%clk 0:02:02]} 14. Bxh6 {[%clk 0:00:15]}  d3+ {[%clk 0:01:42]} 15. Kh1 {[%clk 0:00:13]}  Qc6 {[%clk 0:00:31]} 16. Bxg7 {[%clk 0:00:13]}  Kxg7 {[%clk 0:00:25]} 17. Rf6 {[%clk 0:00:13]}  dxc2 {[%clk 0:00:13]} 18. Nc3 {[%clk 0:00:10]}  Nd7 {[%clk 0:00:08]} 19. Qg5+ {[%clk 0:00:09]}  Kh7 {[%clk 0:00:07]} 20. Qh4+ {[%clk 0:00:07]}  Kg7 {[%clk 0:00:06]} 21. Rxc6 {[%clk 0:00:06]}  bxc6 {[%clk 0:00:06]} 22. Qg5+ {[%clk 0:00:06]}  Kh7 {[%clk 0:00:05]} 23. Qf5+ {[%clk 0:00:06]}  Kg7 {[%clk 0:00:05]} 24. Qxc2 {[%clk 0:00:07]}  Nxe5 {[%clk 0:00:05]} 25. Re1 {[%clk 0:00:06]}  Ng6 {[%clk 0:00:05]} 26. Qd2 {[%clk 0:00:06]}  Be6 {[%clk 0:00:04]} 27. Qd4+ {[%clk 0:00:06]}  Kg8 {[%clk 0:00:04]} 28. h4 {[%clk 0:00:06]}  Ne7 {[%clk 0:00:03]} 29. Qf6 {[%clk 0:00:04]}  Nf5 {[%clk 0:00:02]} 30. h5 {[%clk 0:00:00]}  Kh7 {[%clk 0:00:02]} 0-1


[Site "https://www.chess.com"]

[Event "Titled Tuesday Blitz May 9 Late 2023"]
[White "tufferguy"]
[Black "micke12a"]
[WhiteElo "2558"]
[BlackElo "2369"]
[Result "1-0"]
[Round "06"]
[TimeControl "180+2"]
[Date "2023.05.09"]
[WhiteClock "0:01:33"]
[BlackClock "0:01:07"]

1. d4 {[%clk 0:02:58]}  Nf6 {[%clk 0:03:00]} 2. Nc3 {[%clk 0:02:59]}  d5 {[%clk 0:02:59]} 3. Bf4 {[%clk 0:02:59]}  e6 {[%clk 0:02:59]} 4. Nb5 {[%clk 0:02:58]}  Na6 {[%clk 0:02:59]} 5. e3 {[%clk 0:02:57]}  Be7 {[%clk 0:02:59]} 6. Nf3 {[%clk 0:02:56]}  O-O {[%clk 0:02:59]} 7. c3 {[%clk 0:02:55]}  c6 {[%clk 0:02:59]} 8. Na3 {[%clk 0:02:52]}  Bxa3 {[%clk 0:02:54]} 9. bxa3 {[%clk 0:02:49]}  Qa5 {[%clk 0:02:54]} 10. Qc2 {[%clk 0:02:46]}  Ne4 {[%clk 0:02:54]} 11. Rc1 {[%clk 0:02:44]}  Qxa3 {[%clk 0:02:52]} 12. Bd3 {[%clk 0:02:44]}  f5 {[%clk 0:02:51]} 13. Ne5 {[%clk 0:02:40]}  g5 {[%clk 0:02:43]} 14. Bg3 {[%clk 0:02:31]}  Nb8 {[%clk 0:02:24]} 15. f3 {[%clk 0:02:18]}  Nf6 {[%clk 0:02:20]} 16. h4 {[%clk 0:02:15]}  Nh5 {[%clk 0:01:58]} 17. Bf2 {[%clk 0:02:12]}  Qe7 {[%clk 0:01:58]} 18. hxg5 {[%clk 0:02:09]}  Qxg5 {[%clk 0:01:58]} 19. f4 {[%clk 0:02:09]}  Nxf4 {[%clk 0:01:45]} 20. exf4 {[%clk 0:02:07]}  Qxf4 {[%clk 0:01:45]} 21. Rh4 {[%clk 0:02:00]}  Qg5 {[%clk 0:01:44]} 22. g4 {[%clk 0:01:58]}  Nd7 {[%clk 0:01:35]} 23. Qd2 {[%clk 0:01:50]}  Qxd2+ {[%clk 0:01:23]} 24. Kxd2 {[%clk 0:01:49]}  Nf6 {[%clk 0:01:20]} 25. gxf5 {[%clk 0:01:45]}  exf5 {[%clk 0:01:20]} 26. Rg1+ {[%clk 0:01:45]}  Ng4 {[%clk 0:01:15]} 27. Nxg4 {[%clk 0:01:38]}  fxg4 {[%clk 0:01:16]} 28. Bxh7+ {[%clk 0:01:38]}  Kg7 {[%clk 0:01:07]} 29. Bg3 {[%clk 0:01:33]} 1-0


[Site "https://www.chess.com"]

[Event "Titled Tuesday Blitz May 9 Late 2023"]
[White "brm72"]
[Black "Hoffmann, Asa"]
[BlackFideId "2001470"]
[WhiteElo "2540"]
[BlackElo "2117"]
[Result "0-1"]
[Round "06"]
[TimeControl "180+2"]
[Date "2023.05.09"]
[WhiteClock "0:00:08"]
[BlackClock "0:00:50"]

1. e4 {[%clk 0:03:00]}  d6 {[%clk 0:02:56]} 2. d4 {[%clk 0:02:57]}  Nf6 {[%clk 0:02:56]} 3. Nc3 {[%clk 0:02:57]}  c6 {[%clk 0:02:56]} 4. Nf3 {[%clk 0:02:56]}  Bg4 {[%clk 0:02:55]} 5. Be2 {[%clk 0:02:54]}  e6 {[%clk 0:02:55]} 6. Be3 {[%clk 0:02:53]}  d5 {[%clk 0:02:55]} 7. e5 {[%clk 0:02:46]}  Nfd7 {[%clk 0:02:55]} 8. h3 {[%clk 0:02:40]}  Bh5 {[%clk 0:02:55]} 9. g4 {[%clk 0:02:40]}  Bg6 {[%clk 0:02:55]} 10. Qd2 {[%clk 0:02:35]}  c5 {[%clk 0:02:54]} 11. h4 {[%clk 0:02:22]}  h5 {[%clk 0:02:53]} 12. g5 {[%clk 0:02:17]}  Nc6 {[%clk 0:02:53]} 13. O-O-O {[%clk 0:02:13]}  Qa5 {[%clk 0:02:51]} 14. Kb1 {[%clk 0:02:10]}  c4 {[%clk 0:02:49]} 15. Ne1 {[%clk 0:01:53]}  b5 {[%clk 0:02:33]} 16. Bf3 {[%clk 0:01:29]}  b4 {[%clk 0:02:22]} 17. Ne2 {[%clk 0:01:29]}  b3 {[%clk 0:02:12]} 18. axb3 {[%clk 0:01:20]}  cxb3 {[%clk 0:02:09]} 19. Qxa5 {[%clk 0:01:19]}  Nxa5 {[%clk 0:02:09]} 20. Nf4 {[%clk 0:01:16]}  Bf5 {[%clk 0:02:08]} 21. Bxh5 {[%clk 0:01:15]}  Rc8 {[%clk 0:02:05]} 22. Rc1 {[%clk 0:01:11]}  Bb4 {[%clk 0:02:04]} 23. g6 {[%clk 0:00:56]}  Rxh5 {[%clk 0:01:53]} 24. Nxh5 {[%clk 0:00:47]}  Bxg6 {[%clk 0:01:48]} 25. Nxg7+ {[%clk 0:00:41]}  Kf8 {[%clk 0:01:44]} 26. Bh6 {[%clk 0:00:41]}  Kg8 {[%clk 0:01:43]} 27. h5 {[%clk 0:00:40]}  Be4 {[%clk 0:01:33]} 28. f3 {[%clk 0:00:40]}  bxc2+ {[%clk 0:01:28]} 29. Nxc2 {[%clk 0:00:37]}  Bh7 {[%clk 0:01:24]} 30. Rhg1 {[%clk 0:00:28]}  Kh8 {[%clk 0:01:23]} 31. Rg2 {[%clk 0:00:20]}  Nb3 {[%clk 0:01:22]} 32. Rd1 {[%clk 0:00:20]}  Nb6 {[%clk 0:01:15]} 33. Bc1 {[%clk 0:00:14]}  Nc4 {[%clk 0:01:14]} 34. h6 {[%clk 0:00:14]}  Rc6 {[%clk 0:01:09]} 35. Ka2 {[%clk 0:00:10]}  Nxc1+ {[%clk 0:00:56]} 36. Rxc1 {[%clk 0:00:10]}  Ra6+ {[%clk 0:00:55]} 37. Kb3 {[%clk 0:00:10]}  Bd2 {[%clk 0:00:52]} 38. Rd1 {[%clk 0:00:09]}  Rb6+ {[%clk 0:00:51]} 39. Ka4 {[%clk 0:00:09]}  Bxc2+ {[%clk 0:00:50]} 40. b3 {[%clk 0:00:08]}  Bxb3# {[%clk 0:00:50]} 0-1


[Site "https://www.chess.com"]

[Event "Titled Tuesday Blitz May 9 Late 2023"]
[White "Bashkansky, Ethan"]
[Black "ArtemDyachuk"]
[WhiteFideId "2071533"]
[WhiteElo "2356"]
[BlackElo "2513"]
[Result "0-1"]
[Round "06"]
[TimeControl "180+2"]
[Date "2023.05.09"]
[WhiteClock "0:00:07"]
[BlackClock "0:00:19"]

1. d4 {[%clk 0:03:00]}  Nf6 {[%clk 0:02:47]} 2. c4 {[%clk 0:03:01]}  e6 {[%clk 0:02:39]} 3. Nc3 {[%clk 0:03:01]}  Bb4 {[%clk 0:02:37]} 4. Qc2 {[%clk 0:03:01]}  d5 {[%clk 0:02:31]} 5. cxd5 {[%clk 0:03:01]}  exd5 {[%clk 0:02:30]} 6. Bg5 {[%clk 0:02:59]}  c6 {[%clk 0:02:27]} 7. e3 {[%clk 0:02:58]}  Nbd7 {[%clk 0:02:27]} 8. Bd3 {[%clk 0:02:57]}  Nf8 {[%clk 0:02:27]} 9. Nf3 {[%clk 0:02:57]}  Ng6 {[%clk 0:02:25]} 10. O-O {[%clk 0:02:52]}  h6 {[%clk 0:02:25]} 11. Bh4 {[%clk 0:02:36]}  Nxh4 {[%clk 0:02:23]} 12. Nxh4 {[%clk 0:02:36]}  Bg4 {[%clk 0:02:16]} 13. f3 {[%clk 0:02:12]}  Bd7 {[%clk 0:02:06]} 14. Nf5 {[%clk 0:02:01]}  O-O {[%clk 0:01:58]} 15. Kh1 {[%clk 0:02:00]}  g6 {[%clk 0:01:58]} 16. Ng3 {[%clk 0:02:00]}  Bd6 {[%clk 0:01:53]} 17. Qf2 {[%clk 0:01:49]}  Kg7 {[%clk 0:01:52]} 18. e4 {[%clk 0:01:44]}  dxe4 {[%clk 0:01:52]} 19. fxe4 {[%clk 0:01:40]}  Ng4 {[%clk 0:01:41]} 20. Qf3 {[%clk 0:01:39]}  Qh4 {[%clk 0:01:39]} 21. h3 {[%clk 0:01:04]}  Bxg3 {[%clk 0:01:29]} 22. Kg1 {[%clk 0:00:54]}  Rae8 {[%clk 0:01:23]} 23. e5 {[%clk 0:00:51]}  Bh2+ {[%clk 0:01:20]} 24. Kh1 {[%clk 0:00:51]}  Bg3 {[%clk 0:01:21]} 25. Ne4 {[%clk 0:00:47]}  Bxe5 {[%clk 0:01:12]} 26. dxe5 {[%clk 0:00:16]}  Nxe5 {[%clk 0:01:13]} 27. Qe3 {[%clk 0:00:11]}  Nxd3 {[%clk 0:01:06]} 28. Qxd3 {[%clk 0:00:12]}  Bxh3 {[%clk 0:00:43]} 29. Qd4+ {[%clk 0:00:06]}  f6 {[%clk 0:00:42]} 30. gxh3 {[%clk 0:00:04]}  Qxh3+ {[%clk 0:00:41]} 31. Kg1 {[%clk 0:00:05]}  Qg4+ {[%clk 0:00:40]} 32. Kh2 {[%clk 0:00:03]}  Qh4+ {[%clk 0:00:40]} 33. Kg1 {[%clk 0:00:02]}  Qxe4 {[%clk 0:00:40]} 34. Qxa7 {[%clk 0:00:02]}  Qe3+ {[%clk 0:00:37]} 35. Qxe3 {[%clk 0:00:01]}  Rxe3 {[%clk 0:00:38]} 36. Rf2 {[%clk 0:00:02]}  Rfe8 {[%clk 0:00:37]} 37. Raf1 {[%clk 0:00:03]}  f5 {[%clk 0:00:36]} 38. Rd2 {[%clk 0:00:04]}  Kf6 {[%clk 0:00:35]} 39. a4 {[%clk 0:00:02]}  g5 {[%clk 0:00:32]} 40. Rd6+ {[%clk 0:00:02]}  R3e6 {[%clk 0:00:31]} 41. Rd7 {[%clk 0:00:03]}  R8e7 {[%clk 0:00:31]} 42. Rd8 {[%clk 0:00:03]}  f4 {[%clk 0:00:30]} 43. Rf8+ {[%clk 0:00:04]}  Rf7 {[%clk 0:00:30]} 44. Rh8 {[%clk 0:00:05]}  Kg6 {[%clk 0:00:26]} 45. Rf2 {[%clk 0:00:04]}  g4 {[%clk 0:00:22]} 46. Rg2 {[%clk 0:00:02]}  h5 {[%clk 0:00:20]} 47. Rg8+ {[%clk 0:00:02]}  Rg7 {[%clk 0:00:20]} 48. Rd8 {[%clk 0:00:02]}  f3 {[%clk 0:00:19]} 49. Rf2 {[%clk 0:00:02]}  Rf7 {[%clk 0:00:19]} 50. Rdd2 {[%clk 0:00:01]}  Kg5 {[%clk 0:00:19]} 51. Rf1 {[%clk 0:00:01]}  Kh4 {[%clk 0:00:19]} 52. Rc1 {[%clk 0:00:02]}  Re2 {[%clk 0:00:18]} 53. Rxe2 {[%clk 0:00:01]}  fxe2 {[%clk 0:00:18]} 54. Re1 {[%clk 0:00:02]}  Rf1+ {[%clk 0:00:17]} 55. Rxf1 {[%clk 0:00:02]}  exf1=Q+ {[%clk 0:00:18]} 56. Kxf1 {[%clk 0:00:03]}  Kg3 {[%clk 0:00:18]} 57. Kg1 {[%clk 0:00:03]}  h4 {[%clk 0:00:17]} 58. b4 {[%clk 0:00:04]}  h3 {[%clk 0:00:17]} 59. Kh1 {[%clk 0:00:04]}  Kf2 {[%clk 0:00:17]} 60. Kh2 {[%clk 0:00:04]}  g3+ {[%clk 0:00:17]} 61. Kxh3 {[%clk 0:00:05]}  g2 {[%clk 0:00:18]} 62. b5 {[%clk 0:00:06]}  g1=Q {[%clk 0:00:19]} 63. bxc6 {[%clk 0:00:07]}  Qg3# {[%clk 0:00:19]} 0-1


[Site "https://www.chess.com"]

[Event "Titled Tuesday Blitz May 9 Late 2023"]
[White "Shapiro, Daniel"]
[Black "Kavutskiy, Konstantin"]
[WhiteFideId "2001780"]
[BlackFideId "2026384"]
[WhiteElo "2355"]
[BlackElo "2323"]
[Result "0-1"]
[Round "06"]
[TimeControl "180+2"]
[Date "2023.05.09"]
[WhiteClock "0:00:00"]
[BlackClock "0:00:04"]

1. d4 {[%clk 0:03:00]}  Nf6 {[%clk 0:02:59]} 2. c4 {[%clk 0:03:00]}  g6 {[%clk 0:02:59]} 3. Nc3 {[%clk 0:02:59]}  Bg7 {[%clk 0:02:59]} 4. e4 {[%clk 0:02:59]}  d6 {[%clk 0:02:59]} 5. Be2 {[%clk 0:02:59]}  O-O {[%clk 0:02:58]} 6. Nf3 {[%clk 0:03:00]}  e5 {[%clk 0:02:58]} 7. O-O {[%clk 0:03:00]}  h6 {[%clk 0:02:58]} 8. a4 {[%clk 0:02:49]}  a5 {[%clk 0:02:51]} 9. b3 {[%clk 0:02:41]}  Nc6 {[%clk 0:02:40]} 10. d5 {[%clk 0:02:38]}  Nd4 {[%clk 0:02:36]} 11. Ne1 {[%clk 0:02:29]}  Nd7 {[%clk 0:02:22]} 12. Nd3 {[%clk 0:02:10]}  f5 {[%clk 0:02:20]} 13. Ba3 {[%clk 0:02:05]}  b6 {[%clk 0:02:07]} 14. b4 {[%clk 0:02:04]}  axb4 {[%clk 0:02:04]} 15. Bxb4 {[%clk 0:02:04]}  Nc5 {[%clk 0:02:04]} 16. f3 {[%clk 0:01:46]}  Ba6 {[%clk 0:01:44]} 17. Nf2 {[%clk 0:01:42]}  Nxe2+ {[%clk 0:01:25]} 18. Qxe2 {[%clk 0:01:37]}  Nb3 {[%clk 0:01:25]} 19. Ra3 {[%clk 0:01:33]}  Nd4 {[%clk 0:01:25]} 20. Qd3 {[%clk 0:01:32]}  Rf6 {[%clk 0:01:11]} 21. Rfa1 {[%clk 0:01:28]}  c5 {[%clk 0:01:07]} 22. dxc6 {[%clk 0:01:22]}  Kh7 {[%clk 0:00:52]} 23. Nd5 {[%clk 0:01:17]}  Rf7 {[%clk 0:00:40]} 24. c7 {[%clk 0:01:12]}  Rxc7 {[%clk 0:00:40]} 25. Nxc7 {[%clk 0:01:04]}  Qxc7 {[%clk 0:00:41]} 26. a5 {[%clk 0:00:52]}  b5 {[%clk 0:00:23]} 27. cxb5 {[%clk 0:00:45]}  Bxb5 {[%clk 0:00:23]} 28. Qd2 {[%clk 0:00:40]}  Ra6 {[%clk 0:00:21]} 29. Nd1 {[%clk 0:00:32]}  fxe4 {[%clk 0:00:17]} 30. fxe4 {[%clk 0:00:31]}  Qb7 {[%clk 0:00:17]} 31. Re3 {[%clk 0:00:18]}  h5 {[%clk 0:00:16]} 32. Qf2 {[%clk 0:00:14]}  Bh6 {[%clk 0:00:16]} 33. Re1 {[%clk 0:00:14]}  Qe7 {[%clk 0:00:13]} 34. Nc3 {[%clk 0:00:13]}  Bc6 {[%clk 0:00:13]} 35. Nd5 {[%clk 0:00:13]}  Bxd5 {[%clk 0:00:13]} 36. exd5 {[%clk 0:00:14]}  h4 {[%clk 0:00:10]} 37. Qxd4 {[%clk 0:00:14]}  Qb7 {[%clk 0:00:04]} 38. Qc4 {[%clk 0:00:13]}  Bf4 {[%clk 0:00:03]} 39. Rab1 {[%clk 0:00:11]}  Qa8 {[%clk 0:00:03]} 40. Qb5 {[%clk 0:00:10]}  Ra7 {[%clk 0:00:03]} 41. Bxd6 {[%clk 0:00:09]}  Rd7 {[%clk 0:00:02]} 42. Qc5 {[%clk 0:00:07]}  Qa6 {[%clk 0:00:02]} 43. Rb6 {[%clk 0:00:07]}  Qa8 {[%clk 0:00:02]} 44. Rc6 {[%clk 0:00:07]}  Qe8 {[%clk 0:00:03]} 45. Rc7 {[%clk 0:00:07]}  Rxc7 {[%clk 0:00:02]} 46. Qxc7+ {[%clk 0:00:06]}  Kh6 {[%clk 0:00:03]} 47. Qe7 {[%clk 0:00:06]}  Qa4 {[%clk 0:00:03]} 48. Qxh4+ {[%clk 0:00:06]}  Kg7 {[%clk 0:00:03]} 49. g3 {[%clk 0:00:05]}  Qxa5 {[%clk 0:00:02]} 50. gxf4 {[%clk 0:00:03]}  Qb6+ {[%clk 0:00:02]} 51. Qf2 {[%clk 0:00:01]}  Qxd6 {[%clk 0:00:03]} 52. fxe5 {[%clk 0:00:02]}  Qxd5 {[%clk 0:00:03]} 53. Qf6+ {[%clk 0:00:02]}  Kh6 {[%clk 0:00:03]} 54. Qh8+ {[%clk 0:00:00]}  Kg5 {[%clk 0:00:04]} 0-1


[Site "https://www.chess.com"]

[Event "Titled Tuesday Blitz May 9 Late 2023"]
[White "Sanhueza, Cristian"]
[Black "Al-Saffar, Araz Basim Mohammed S"]
[WhiteFideId "116815"]
[BlackFideId "4801040"]
[WhiteElo "2174"]
[BlackElo "2304"]
[Result "1/2-1/2"]
[Round "06"]
[TimeControl "180+2"]
[Date "2023.05.09"]
[WhiteClock "0:00:50"]
[BlackClock "0:00:22"]

1. e4 {[%clk 0:03:00]}  d5 {[%clk 0:02:59]} 2. exd5 {[%clk 0:03:00]}  Qxd5 {[%clk 0:03:00]} 3. Nc3 {[%clk 0:03:00]}  Qd6 {[%clk 0:03:01]} 4. Nf3 {[%clk 0:02:59]}  c6 {[%clk 0:02:57]} 5. g3 {[%clk 0:02:59]}  Bg4 {[%clk 0:02:54]} 6. Bg2 {[%clk 0:02:59]}  Nf6 {[%clk 0:02:54]} 7. O-O {[%clk 0:02:59]}  Nbd7 {[%clk 0:02:54]} 8. d3 {[%clk 0:02:56]}  e6 {[%clk 0:02:53]} 9. Bf4 {[%clk 0:02:56]}  Qc5 {[%clk 0:02:51]} 10. h3 {[%clk 0:02:54]}  Bxf3 {[%clk 0:02:45]} 11. Qxf3 {[%clk 0:02:55]}  Be7 {[%clk 0:02:26]} 12. g4 {[%clk 0:02:51]}  O-O {[%clk 0:02:25]} 13. g5 {[%clk 0:02:47]}  Nd5 {[%clk 0:02:25]} 14. Nxd5 {[%clk 0:02:38]}  exd5 {[%clk 0:02:18]} 15. Rfe1 {[%clk 0:02:33]}  Rfe8 {[%clk 0:02:11]} 16. c3 {[%clk 0:02:22]}  Nf8 {[%clk 0:02:01]} 17. d4 {[%clk 0:02:20]}  Qb6 {[%clk 0:02:00]} 18. b4 {[%clk 0:02:19]}  Ne6 {[%clk 0:01:53]} 19. h4 {[%clk 0:02:01]}  Nxf4 {[%clk 0:01:52]} 20. Qxf4 {[%clk 0:02:02]}  a5 {[%clk 0:01:50]} 21. a3 {[%clk 0:02:01]}  Bf8 {[%clk 0:01:36]} 22. h5 {[%clk 0:01:47]}  axb4 {[%clk 0:01:32]} 23. axb4 {[%clk 0:01:48]}  Rxa1 {[%clk 0:01:32]} 24. Rxa1 {[%clk 0:01:48]}  Qd8 {[%clk 0:01:16]} 25. Bf3 {[%clk 0:01:40]}  Bd6 {[%clk 0:01:15]} 26. Qg4 {[%clk 0:01:32]}  g6 {[%clk 0:01:10]} 27. hxg6 {[%clk 0:01:32]}  hxg6 {[%clk 0:01:08]} 28. Kg2 {[%clk 0:01:32]}  Kg7 {[%clk 0:01:06]} 29. Rh1 {[%clk 0:01:33]}  Rh8 {[%clk 0:01:05]} 30. b5 {[%clk 0:01:30]}  Rxh1 {[%clk 0:00:25]} 31. Kxh1 {[%clk 0:01:31]}  Be7 {[%clk 0:00:25]} 32. bxc6 {[%clk 0:01:03]}  bxc6 {[%clk 0:00:26]} 33. c4 {[%clk 0:01:04]}  Bxg5 {[%clk 0:00:26]} 34. cxd5 {[%clk 0:01:04]}  cxd5 {[%clk 0:00:27]} 35. Qg2 {[%clk 0:01:04]}  Bf4 {[%clk 0:00:23]} 36. Bxd5 {[%clk 0:01:03]}  Qh4+ {[%clk 0:00:23]} 37. Kg1 {[%clk 0:01:03]}  Qf6 {[%clk 0:00:22]} 38. Qe4 {[%clk 0:01:01]}  Bd6 {[%clk 0:00:21]} 39. Kf1 {[%clk 0:01:01]}  Qf4 {[%clk 0:00:21]} 40. Qxf4 {[%clk 0:01:00]}  Bxf4 {[%clk 0:00:22]} 41. Bc6 {[%clk 0:00:50]}  Kf6 {[%clk 0:00:22]} 1/2-1/2


[Site "https://www.chess.com"]

[Event "Titled Tuesday Blitz May 9 Late 2023"]
[White "Georg, Heinz"]
[Black "Hirneise, Jens"]
[WhiteFideId "4607295"]
[BlackFideId "24614734"]
[WhiteElo "2306"]
[BlackElo "2345"]
[Result "0-1"]
[Round "06"]
[TimeControl "180+2"]
[Date "2023.05.09"]
[WhiteClock "0:00:55"]
[BlackClock "0:00:50"]

1. c4 {[%clk 0:03:00]}  c5 {[%clk 0:02:16]} 2. Nc3 {[%clk 0:02:57]}  e5 {[%clk 0:02:15]} 3. g3 {[%clk 0:02:54]}  Nc6 {[%clk 0:02:14]} 4. Bg2 {[%clk 0:02:55]}  f5 {[%clk 0:02:14]} 5. Rb1 {[%clk 0:02:52]}  Nf6 {[%clk 0:02:14]} 6. a3 {[%clk 0:02:50]}  Bd6 {[%clk 0:02:08]} 7. e3 {[%clk 0:02:49]}  O-O {[%clk 0:02:08]} 8. Nge2 {[%clk 0:02:49]}  e4 {[%clk 0:02:07]} 9. d4 {[%clk 0:02:36]}  exd3 {[%clk 0:01:59]} 10. Qxd3 {[%clk 0:02:33]}  Qe7 {[%clk 0:01:55]} 11. Nd5 {[%clk 0:02:25]}  Nxd5 {[%clk 0:01:54]} 12. Qxd5+ {[%clk 0:02:24]}  Kh8 {[%clk 0:01:54]} 13. O-O {[%clk 0:02:17]}  b6 {[%clk 0:01:45]} 14. Rd1 {[%clk 0:02:03]}  Be5 {[%clk 0:01:45]} 15. Qd2 {[%clk 0:01:43]}  Rb8 {[%clk 0:01:37]} 16. Nc3 {[%clk 0:01:43]}  d6 {[%clk 0:01:33]} 17. Nd5 {[%clk 0:01:43]}  Qf7 {[%clk 0:01:24]} 18. b4 {[%clk 0:01:40]}  Bb7 {[%clk 0:01:23]} 19. f4 {[%clk 0:01:34]}  Bf6 {[%clk 0:01:19]} 20. Nxf6 {[%clk 0:01:34]}  Qxf6 {[%clk 0:01:20]} 21. Bb2 {[%clk 0:01:34]}  Qe7 {[%clk 0:01:17]} 22. Qxd6 {[%clk 0:01:24]}  Qxe3+ {[%clk 0:01:16]} 23. Kh1 {[%clk 0:01:22]}  Nd4 {[%clk 0:01:05]} 24. Bxd4 {[%clk 0:01:07]}  Bxg2+ {[%clk 0:01:04]} 25. Kxg2 {[%clk 0:01:08]}  cxd4 {[%clk 0:01:04]} 26. Qxd4 {[%clk 0:01:07]}  Qxa3 {[%clk 0:01:04]} 27. Rd3 {[%clk 0:01:00]}  Qa2+ {[%clk 0:01:00]} 28. Qb2 {[%clk 0:00:59]}  Qxc4 {[%clk 0:00:53]} 29. Rd7 {[%clk 0:00:55]}  Qc6+ {[%clk 0:00:50]} 0-1


[Site "https://www.chess.com"]